bitfinex-derivatives/quotes_BTCF0:USTF0_20250823
["timestamp","ask_amount","ask_price","bid_price","bid_amount"]
[1755966190033,0.11713,114950.0,114940.0,1.36598655]
[1755966190433,0.12898841,114950.0,114940.0,1.42779638]
[1755966190744,0.11713,114950.0,114940.0,1.42779638]
[1755966190945,0.11813,114950.0,114940.0,1.42979638]
[1755966191650,0.11713,114950.0,114940.0,1.42979638]
[1755966192548,0.11713,114950.0,114940.0,1.36741806]
[1755966199255,0.11713,114950.0,114940.0,1.3805869]
[1755966202145,0.06942,114950.0,114940.0,1.3805869]
[1755966202855,0.11713,114950.0,114940.0,1.3805869]
[1755966204156,0.02329,114950.0,114940.0,1.3805869]
[1755966205154,0.02329,114950.0,114940.0,0.88984099]
[1755966205359,0.08839,114950.0,114940.0,0.88984099]
[1755966205552,0.11713,114950.0,114940.0,1.38058527]
[1755966206557,0.11713,114950.0,114940.0,1.37958527]
[1755966206856,0.11713,114950.0,114940.0,1.38158527]
[1755966207245,0.11713,114950.0,114940.0,1.38258527]
[1755966207446,0.06942,114950.0,114940.0,1.38258527]
[1755966207851,0.10302,114950.0,114940.0,1.38258527]
[1755966209160,0.06942,114950.0,114940.0,1.38258527]
[1755966209660,0.05437,114950.0,114940.0,1.38258527]
[1755966209961,0.02329,114950.0,114940.0,1.38258527]
[1755966213157,0.02329,114950.0,114940.0,0.89183936]
[1755966213352,0.02329,114950.0,114940.0,1.38258527]
[1755966213558,0.02329,114950.0,114940.0,1.44496359]
[1755966215371,0.02329,114950.0,114940.0,1.44499205]
[1755966215668,0.84027,114960.0,114950.0,0.0870234]
[1755966215963,0.84027,114960.0,114950.0,1.29176498]
[1755966216563,0.84027,114960.0,114950.0,1.3541433]
[1755966216564,0.89561,114960.0,114950.0,1.3541433]
[1755966216862,0.00925,114980.0,114970.0,0.0870061]
[1755966217061,0.9892107,114980.0,114970.0,1.29174768]
[1755966217363,1.0119907,114980.0,114970.0,0.80100177]
[1755966217667,1.0233409,114980.0,114970.0,1.3543554]
[1755966217964,0.92499,114980.0,114970.0,1.3543554]
[1755966219059,1.0129907,114980.0,114970.0,1.3543554]
[1755966219356,1.0149907,114980.0,114970.0,1.3543554]
[1755966220469,1.02608998,114980.0,114970.0,1.3543554]
[1755966220661,0.93908928,114980.0,114970.0,1.3543554]
[1755966221063,0.92799,114980.0,114970.0,1.3543554]
[1755966221266,0.08599,114980.0,114970.0,1.3543554]
[1755966221569,0.89415,114980.0,114970.0,1.3543554]
[1755966221766,0.92775,114980.0,114970.0,1.3543554]
[1755966222467,0.89415,114980.0,114970.0,1.3543554]
[1755966222769,0.92775,114980.0,114970.0,1.3543554]
[1755966225267,0.92775,114980.0,114970.0,1.35427903]
[1755966227976,0.89415,114980.0,114970.0,1.35427903]
[1755966228177,0.92775,114980.0,114970.0,1.35427903]
[1755966228970,0.05677,114980.0,114970.0,1.35427903]
[1755966229160,0.84211,114980.0,114970.0,1.71507903]
[1755966229866,0.09037,114980.0,114970.0,1.71507903]
[1755966230065,0.89749,114980.0,114970.0,1.71507903]
[1755966230267,0.92671,114980.0,114970.0,1.71507903]
[1755966231176,0.92671,114980.0,114970.0,1.65247131]
[1755966233074,0.92671,114980.0,114970.0,1.71495378]
[1755966233266,0.92671,114980.0,114970.0,1.65247131]
[1755966234067,0.92671,114980.0,114970.0,1.71495199]
[1755966234273,0.92671,114980.0,114970.0,1.65247131]
[1755966234473,0.01901,115000.0,114990.0,0.1685431]
[1755966234667,0.89044,115000.0,114990.0,1.37320831]
[1755966234872,0.90565,115000.0,114990.0,1.42256409]
[1755966235072,0.90565,115000.0,114990.0,1.43554922]
[1755966235582,0.91913721,115000.0,114990.0,1.43554412]
[1755966236175,0.92113721,115000.0,114990.0,1.43554412]
[1755966236475,0.94391721,115000.0,114990.0,1.43554412]
[1755966236877,1.03090271,115000.0,114990.0,1.43554412]
[1755966238073,1.03090271,115000.0,114990.0,0.94479821]
[1755966238274,0.94391721,115000.0,114990.0,0.94479821]
[1755966238475,0.94391721,115000.0,114990.0,1.43554412]
[1755966238776,0.13711721,115000.0,114990.0,1.43554412]
[1755966238976,0.94407721,115000.0,114990.0,1.43554412]
[1755966239179,0.94207721,115000.0,114990.0,1.43554412]
[1755966239369,0.94007721,115000.0,114990.0,1.43854412]
[1755966239569,0.94007721,115000.0,114990.0,1.44154412]
[1755966240876,0.13311721,115000.0,114990.0,1.44154412]
[1755966241079,0.94003721,115000.0,114990.0,1.44154412]
[1755966241980,1.02702271,115000.0,114990.0,0.95079821]
[1755966242180,1.02702271,115000.0,114990.0,1.44154412]
[1755966242771,1.02702271,115000.0,114990.0,0.95079821]
[1755966242977,1.02698271,115000.0,114990.0,1.44154412]
[1755966243181,1.02698271,115000.0,114990.0,1.43854412]
[1755966243381,1.02698271,115000.0,114990.0,1.44054412]
[1755966243578,1.02698271,115000.0,114990.0,1.42756409]
[1755966243879,1.02698271,115000.0,114990.0,1.44054208]
[1755966244271,1.04654838,115000.0,114990.0,1.44054208]
[1755966245581,1.04654838,115000.0,114990.0,1.43954208]
[1755966245784,1.04654838,115000.0,114990.0,1.43854208]
[1755966246382,1.04654838,115000.0,114990.0,1.376067]
[1755966246584,1.04654838,115000.0,114990.0,1.43855704]
[1755966247085,1.04802838,115000.0,114990.0,1.41577704]
[1755966247482,1.04802838,115000.0,114990.0,0.84080109]
[1755966247783,1.29802838,115000.0,114990.0,1.2075239]
[1755966248185,1.29802838,115000.0,114990.0,1.294517]
[1755966248373,1.29802838,115000.0,114990.0,1.316257]
[1755966248981,1.29758838,115000.0,114990.0,1.339037]
[1755966249584,1.04758838,115000.0,114990.0,1.339037]
[1755966249778,1.03606117,115000.0,114990.0,1.339037]
[1755966250087,1.03606117,115000.0,114990.0,0.88587109]
[1755966250387,1.04743062,115000.0,114990.0,1.376617]
[1755966251787,1.04743062,115000.0,114990.0,0.88587109]
[1755966252085,1.04743062,115000.0,114990.0,1.376617]
[1755966252584,1.04743062,115000.0,114990.0,1.43912061]
[1755966252980,0.19070062,115000.0,114990.0,1.43912061]
[1755966253186,1.03797117,115000.0,114990.0,1.43912061]
[1755966253483,1.03797117,115000.0,114990.0,1.43913378]
[1755966254779,0.19525117,115000.0,114990.0,1.43913378]
[1755966254988,1.04912559,115000.0,114990.0,1.43913378]
[1755966255488,1.0181655,115000.0,114990.0,1.43913378]
[1755966255885,1.0181655,115000.0,114990.0,1.39461378]
[1755966256185,1.2681655,115000.0,114990.0,0.86628787]
[1755966256373,1.6289655,115000.0,114990.0,0.15773116]
[1755966256573,1.64019649,115000.0,114990.0,0.38852926]
[1755966256787,1.64019649,115000.0,114990.0,0.32599116]
[1755966257283,1.64019649,115000.0,114990.0,0.313]
[1755966257786,1.64019649,115000.0,114990.0,0.33775]
[1755966259588,1.64019649,115000.0,114990.0,0.4002881]
[1755966259983,1.64019649,115000.0,114990.0,0.4098381]
[1755966261985,1.64019649,115000.0,114990.0,0.4641581]
[1755966262489,1.00661649,115000.0,114990.0,1.43332721]
[1755966262685,0.12647649,115000.0,114990.0,1.43332721]
[1755966262888,0.91922649,115000.0,114990.0,1.62078911]
[1755966263083,0.93351649,115000.0,114990.0,1.69894397]
[1755966263988,0.93351649,115000.0,114990.0,1.71657683]
[1755966265085,0.9079955,115000.0,114990.0,1.71657683]
[1755966265287,0.8984655,115000.0,114990.0,1.71657683]
[1755966268196,0.9076555,115000.0,114990.0,1.71657683]
[1755966268693,0.9212655,115000.0,114990.0,1.71657683]
[1755966269993,0.9212655,115000.0,114990.0,1.46657683]
[1755966270493,0.9076555,115000.0,114990.0,1.46657683]
[1755966271483,0.9212655,115000.0,114990.0,1.46657683]
[1755966274293,0.9212655,115000.0,114990.0,1.38842197]
[1755966275196,0.9076555,115000.0,114990.0,1.38842197]
[1755966276190,0.9212655,115000.0,114990.0,1.38842197]
[1755966276399,0.9212655,115000.0,114990.0,1.46659705]
[1755966277899,0.8967855,115000.0,114990.0,1.46659705]
[1755966278095,0.8967855,115000.0,114990.0,0.97585114]
[1755966278298,0.8967855,115000.0,114990.0,1.46659705]
[1755966278499,0.9065555,115000.0,114990.0,1.46659705]
[1755966278797,0.9201655,115000.0,114990.0,1.46659705]
[1755966281700,0.9201655,115000.0,114990.0,1.38842197]
[1755966284098,0.9201655,115000.0,114990.0,1.4665898]
[1755966285910,0.9201655,115000.0,114990.0,0.97584389]
[1755966286102,0.9201655,115000.0,114990.0,1.4665898]
[1755966287111,0.83318,115000.0,114990.0,1.4665898]
[1755966288113,0.83318,115000.0,114990.0,1.38842197]
[1755966288408,0.83318,115000.0,114990.0,1.38800046]
[1755966288711,0.9201655,115000.0,114990.0,1.38800046]
[1755966291909,0.9201655,115000.0,114990.0,0.89767606]
[1755966292114,0.9201655,115000.0,114990.0,1.87832486]
[1755966292503,0.9201655,115000.0,114990.0,1.38800046]
[1755966292704,0.9201655,115000.0,114990.0,1.49753479]
[1755966294212,0.8026689,115000.0,114990.0,1.49753479]
[1755966294412,0.8026689,115000.0,114990.0,1.38800046]
[1755966295013,0.8026689,115000.0,114990.0,1.49764672]
[1755966297919,0.8062189,115000.0,114990.0,1.49764672]
[1755966299618,0.09976683,115010.0,115000.0,0.2034555]
[1755966299619,0.00937,115010.0,115000.0,0.2034555]
[1755966299912,0.914958,115010.0,115000.0,1.91322255]
[1755966300307,0.918508,115010.0,115000.0,1.91322255]
[1755966300821,0.919508,115010.0,115000.0,1.98161187]
[1755966301916,0.83253,115010.0,115000.0,1.98161187]
[1755966302314,0.83253,115010.0,115000.0,1.49122702]
[1755966302614,0.84250357,115010.0,115000.0,1.49322702]
[1755966302816,0.84250357,115010.0,115000.0,1.49522702]
[1755966303410,0.03750357,115010.0,115000.0,1.49522702]
[1755966303615,0.04229069,115020.0,115010.0,0.203448]
[1755966303816,0.92061109,115020.0,115010.0,1.4228302]
[1755966304017,0.12926109,115020.0,115010.0,1.45415821]
[1755966304221,0.93422109,115020.0,115010.0,1.45415821]
[1755966304412,0.12926109,115020.0,115010.0,1.45415821]
[1755966304719,0.12926109,115020.0,115010.0,1.34451195]
[1755966304916,0.93426109,115020.0,115010.0,1.34451195]
[1755966305427,0.93422109,115020.0,115010.0,1.42271287]
[1755966305612,0.94496963,115020.0,115010.0,1.42271287]
[1755966306617,0.94851963,115020.0,115010.0,1.42271287]
[1755966306821,0.94851963,115020.0,115010.0,1.42371287]
[1755966307918,0.94851963,115020.0,115010.0,0.93344892]
[1755966308114,0.94851963,115020.0,115010.0,1.42371287]
[1755966308718,0.94851963,115020.0,115010.0,1.42471287]
[1755966308923,0.94851963,115020.0,115010.0,1.42571287]
[1755966310521,0.12639963,115020.0,115010.0,1.42571287]
[1755966310726,0.11702963,115020.0,115010.0,1.42571287]
[1755966310919,0.01931069,115020.0,115010.0,1.42571287]
[1755966311615,0.01931069,115020.0,115010.0,1.42471287]
[1755966311820,0.01931069,115020.0,115010.0,1.42571287]
[1755966312726,0.01931069,115020.0,115010.0,1.42271287]
[1755966312931,0.01931069,115020.0,115010.0,1.42671287]
[1755966313125,0.02868069,115020.0,115010.0,1.42671287]
[1755966313328,0.01931069,115020.0,115010.0,1.42471287]
[1755966313628,0.01931069,115020.0,115010.0,1.42571287]
[1755966315114,0.01931069,115020.0,115010.0,1.42671287]
[1755966315728,0.01931069,115020.0,115010.0,1.42471287]
[1755966315930,0.01931069,115020.0,115010.0,1.42671287]
[1755966317533,0.01931069,115020.0,115010.0,1.34851195]
[1755966317724,0.01931069,115020.0,115010.0,1.42659112]
[1755966317925,0.01931069,115020.0,115010.0,1.42658496]
[1755966318330,0.01931069,115020.0,115010.0,0.93632101]
[1755966318521,0.01931069,115020.0,115010.0,1.42658496]
[1755966319326,0.92914634,115030.0,115020.0,0.1331304]
[1755966319532,0.92914634,115030.0,115020.0,1.33450435]
[1755966320436,0.92914634,115030.0,115020.0,1.33650435]
[1755966322434,0.92914634,115030.0,115020.0,1.33636524]
[1755966322624,0.92914634,115030.0,115020.0,1.33736524]
[1755966323024,0.92914634,115030.0,115020.0,0.92531341]
[1755966323225,0.92914634,115030.0,115020.0,1.41543825]
[1755966324026,0.92914634,115030.0,115020.0,0.92531341]
[1755966324226,0.92914634,115030.0,115020.0,1.41543825]
[1755966324629,0.92914634,115030.0,115020.0,0.92531341]
[1755966324929,0.03717914,115030.0,115020.0,1.41543825]
[1755966325129,0.84177914,115030.0,115020.0,1.41543825]
[1755966325330,0.82461914,115030.0,115020.0,1.41543825]
[1755966325524,0.91158194,115030.0,115020.0,1.41543825]
[1755966325731,0.92519194,115030.0,115020.0,1.41543825]
[1755966326229,0.92519194,115030.0,115020.0,0.92531341]
[1755966326434,0.92519194,115030.0,115020.0,1.41543825]
[1755966327027,0.92874194,115030.0,115020.0,1.41543825]
[1755966331039,0.93096194,115030.0,115020.0,1.41543825]
[1755966332734,0.92874194,115030.0,115020.0,1.41543825]
[1755966333439,0.93096194,115030.0,115020.0,1.33048785]
[1755966334043,0.93096194,115030.0,115020.0,1.41745825]
[1755966335248,0.93096194,115030.0,115020.0,1.41645825]
[1755966335432,0.92974194,115030.0,115020.0,1.41545825]
[1755966337144,0.92974194,115030.0,115020.0,1.33738524]
[1755966340749,0.92974194,115030.0,115020.0,1.41545825]
[1755966341243,0.92974194,115030.0,115020.0,1.33738524]
[1755966341443,0.92974194,115030.0,115020.0,1.41545825]
[1755966341645,0.92874194,115030.0,115020.0,1.41645825]
[1755966345042,0.92874194,115030.0,115020.0,1.41545825]
[1755966345247,0.92874194,115030.0,115020.0,1.41645825]
[1755966347248,0.92519194,115030.0,115020.0,1.41645825]
[1755966347449,0.91158194,115030.0,115020.0,1.41645825]
[1755966347950,0.92552194,115030.0,115020.0,1.33838524]
[1755966349449,0.92552194,115030.0,115020.0,1.41645825]
[1755966350456,0.92907194,115030.0,115020.0,0.92633341]
[1755966350652,0.92907194,115030.0,115020.0,1.25141484]
[1755966351048,1.41919678,115030.0,115020.0,1.25141484]
[1755966351255,2.03221678,115030.0,115020.0,0.43059301]
[1755966351950,2.03321678,115030.0,115020.0,0.42859301]
[1755966352150,2.03321678,115030.0,115020.0,0.35052]
[1755966352451,1.54309194,115030.0,115020.0,0.35052]
[1755966352652,2.03321678,115030.0,115020.0,0.35052]
[1755966352853,2.03321678,115030.0,115020.0,0.41310062]
[1755966353051,2.03321678,115030.0,115020.0,0.30436]
[1755966353251,2.03321678,115030.0,115020.0,0.36694877]
[1755966354354,1.54309194,115030.0,115020.0,0.36694877]
[1755966354550,1.54309194,115030.0,115020.0,0.30436]
[1755966354755,2.03341948,115030.0,115020.0,0.30436]
[1755966354953,2.03341948,115030.0,115020.0,0.28]
[1755966355146,2.05243403,115030.0,115020.0,0.28]
[1755966355345,2.05243403,115030.0,115020.0,0.305]
[1755966355546,1.56210649,115030.0,115020.0,0.305]
[1755966356150,2.05243403,115030.0,115020.0,0.305]
[1755966358056,3.70591403,115030.0,115020.0,0.305]
[1755966359058,3.45591403,115030.0,115020.0,0.305]
[1755966360150,3.70591403,115030.0,115020.0,0.26034]
[1755966360350,3.70742761,115030.0,115020.0,0.26034]
[1755966362359,3.70742761,115030.0,115020.0,0.28467]
[1755966362561,3.70742761,115030.0,115020.0,0.26034]
[1755966363162,3.70742761,115030.0,115020.0,0.28467]
[1755966364264,3.21710007,115030.0,115020.0,0.28467]
[1755966364460,3.70742761,115030.0,115020.0,0.28467]
[1755966370559,3.70742761,115030.0,115010.0,0.0468]
[1755966370560,0.0869705,115020.0,115010.0,0.02433]
[1755966370756,0.96708804,115020.0,115010.0,0.22798061]
[1755966370957,1.21708804,115020.0,115010.0,0.09888221]
[1755966371163,0.1117056,115000.0,114990.0,0.15658877]
[1755966371465,1.3249756,115000.0,114990.0,0.44658877]
[1755966371770,1.3239756,115000.0,114990.0,0.44658877]
[1755966371957,1.3239756,115000.0,114990.0,0.69658877]
[1755966372767,1.3229756,115000.0,114990.0,0.69658877]
[1755966373066,1.3229756,115000.0,114990.0,0.72091877]
[1755966373264,1.3229756,115000.0,114990.0,0.65833]
[1755966373465,1.3229756,115000.0,114990.0,0.66133]
[1755966374068,1.3229756,115000.0,114990.0,0.66433]
[1755966375258,1.3229756,115000.0,114990.0,0.3821]
[1755966375667,1.81330314,115000.0,114990.0,0.35173]
[1755966376067,1.3229756,115000.0,114990.0,0.35173]
[1755966376266,1.81330314,115000.0,114990.0,0.32033]
[1755966376565,1.3229756,115000.0,114990.0,0.35173]
[1755966377172,1.3229756,115000.0,114990.0,0.38396]
[1755966379067,1.3229756,115000.0,114990.0,0.41433]
[1755966380784,1.6837756,115000.0,114990.0,0.32033]
[1755966381387,1.6837756,115000.0,114990.0,0.38396]
[1755966381585,1.6837756,115000.0,114990.0,0.41433]
[1755966386393,2.17438205,115000.0,114990.0,0.3821]
[1755966386592,2.17438205,115000.0,114990.0,0.39976]
[1755966390488,1.6837756,115000.0,114990.0,0.39976]
[1755966390792,2.17438205,115000.0,114990.0,0.41357]
[1755966391293,1.6837756,115000.0,114990.0,0.41357]
[1755966391592,2.17438205,115000.0,114990.0,0.41357]
[1755966397594,1.6837756,115000.0,114990.0,0.41357]
[1755966397785,2.17438205,115000.0,114990.0,0.41357]
[1755966402585,3.82842205,115000.0,114990.0,0.41357]
[1755966404897,3.84912035,115000.0,114990.0,0.41357]
[1755966407288,3.82842205,115000.0,114990.0,0.41357]
[1755966408099,3.82842205,115000.0,114990.0,0.35173]
[1755966408795,3.82842205,115000.0,114990.0,0.33025]
[1755966409597,3.82842205,115000.0,114990.0,0.296]
[1755966410394,3.82842205,115000.0,114990.0,0.31888]
[1755966410590,3.82842205,115000.0,114990.0,0.32824]
[1755966411499,4.3190285,115000.0,114990.0,0.35858877]
[1755966411801,4.3190285,115000.0,114990.0,0.296]
[1755966412000,4.33970294,115000.0,114990.0,0.296]
[1755966412200,4.3190285,115000.0,114990.0,0.296]
[1755966412399,4.3396998,115000.0,114990.0,0.296]
[1755966412801,4.3396998,115000.0,114990.0,0.294]
[1755966413101,4.3396998,115000.0,114990.0,0.291]
[1755966414102,4.3396998,115000.0,114990.0,0.31388]
[1755966417698,3.3584869,115000.0,114990.0,0.33638]
[1755966417898,4.3396998,115000.0,114990.0,0.33638]
[1755966418302,4.3190285,115000.0,114990.0,0.33638]
[1755966418903,4.33968464,115000.0,114990.0,0.33638]
[1755966420299,4.33968464,115000.0,114990.0,0.31388]
[1755966422099,4.33968464,115000.0,114990.0,0.32293]
[1755966422302,4.33968464,115000.0,114990.0,0.34497]
[1755966424192,4.33968464,115000.0,114990.0,0.31388]
[1755966424392,4.33968464,115000.0,114990.0,0.291]
[1755966425199,4.33968464,115000.0,114990.0,0.31597]
[1755966426906,4.33968464,115000.0,114990.0,0.33801]
[1755966432904,4.3190285,115000.0,114990.0,0.33801]
[1755966434103,4.33967717,115000.0,114990.0,0.33801]
[1755966435713,4.33967717,115000.0,114990.0,0.31597]
[1755966435910,4.33967717,115000.0,114990.0,0.07797895]
[1755966436114,0.1492608,114980.0,114970.0,0.14651678]
[1755966436310,1.80778725,114980.0,114970.0,0.43651678]
[1755966437006,1.80778725,114980.0,114970.0,0.40449678]
[1755966437307,2.16858725,114980.0,114970.0,0.34307678]
[1755966437514,2.16858725,114980.0,114970.0,0.29]
[1755966438714,2.16958725,114980.0,114970.0,0.29]
[1755966439015,2.24145687,114980.0,114970.0,0.29]
[1755966441916,1.75085042,114980.0,114970.0,0.29]
[1755966442116,2.24145687,114980.0,114970.0,0.29]
[1755966443818,2.24145687,114980.0,114970.0,0.39278]
[1755966444019,2.24145687,114980.0,114970.0,0.40841]
[1755966445818,3.89577687,114980.0,114970.0,0.40841]
[1755966447513,3.89577687,114980.0,114970.0,0.32109]
[1755966447713,3.9165107,114980.0,114970.0,0.29]
[1755966448311,3.89577687,114980.0,114970.0,0.29]
[1755966452518,3.89577687,114980.0,114970.0,0.32173]
[1755966452820,3.89577687,114980.0,114970.0,0.35414]
[1755966453710,3.89577687,114980.0,114970.0,0.36805]
[1755966453910,3.89577687,114980.0,114970.0,0.39215]
[1755966456619,3.89577687,114980.0,114970.0,0.36805]
[1755966459421,3.89577687,114980.0,114970.0,0.32173]
[1755966459923,3.89577687,114980.0,114970.0,0.35414]
[1755966461720,3.40517042,114980.0,114970.0,0.35414]
[1755966461924,3.89577687,114980.0,114970.0,0.35414]
[1755966462222,3.91652201,114980.0,114970.0,0.35414]
[1755966462824,3.91652201,114980.0,114970.0,0.32173]
[1755966464027,3.91652201,114980.0,114970.0,0.33825]
[1755966464225,3.91652201,114980.0,114970.0,0.40867]
[1755966466425,3.91652201,114980.0,114970.0,0.38457]
[1755966466629,3.91652201,114980.0,114970.0,0.32173]
[1755966469835,3.42591556,114980.0,114970.0,0.35414]
[1755966470023,3.91652201,114980.0,114970.0,0.35414]
[1755966478050,3.42591556,114980.0,114970.0,0.35414]
[1755966478249,3.91652201,114980.0,114970.0,0.35414]
[1755966479141,3.42591556,114980.0,114970.0,0.35414]
[1755966479340,3.91652201,114980.0,114970.0,0.36825]
[1755966484856,3.91652201,114980.0,114970.0,0.35414]
[1755966485862,3.91652201,114980.0,114970.0,0.32173]
[1755966487360,3.91652201,114980.0,114970.0,0.29]
[1755966487959,3.91659174,114980.0,114970.0,0.29]
[1755966500361,3.91659174,114980.0,114970.0,0.31192]
[1755966501068,3.91659174,114980.0,114970.0,0.32162]
[1755966501457,3.91659174,114980.0,114970.0,0.2997]
[1755966505374,3.91659174,114980.0,114970.0,0.29]
[1755966517786,3.91659174,114980.0,114970.0,0.32085]
[1755966528400,3.91659174,114980.0,114970.0,0.35497]
[1755966531710,3.91659174,114980.0,114970.0,0.32085]
[1755966534815,3.91659174,114980.0,114970.0,0.29963]
[1755966535009,3.91659174,114980.0,114970.0,0.29]
[1755966539116,3.91659174,114980.0,114970.0,0.3117]
[1755966540616,3.91659205,114980.0,114970.0,0.3117]
[1755966542220,3.4259856,114980.0,114970.0,0.3117]
[1755966542415,3.91659205,114980.0,114970.0,0.3117]
[1755966543915,3.91659205,114980.0,114970.0,0.29]
[1755966544621,0.0870155,114960.0,114950.0,0.13708024]
[1755966544820,2.2963484,114960.0,114950.0,0.40860024]
[1755966545017,1.80574195,114960.0,114950.0,0.40860024]
[1755966545318,1.81530738,114960.0,114950.0,0.40860024]
[1755966546228,1.81530738,114960.0,114950.0,0.40960024]
[1755966546922,1.81730738,114960.0,114950.0,0.40860024]
[1755966547126,1.81830738,114960.0,114950.0,0.40860024]
[1755966548117,2.30891383,114960.0,114950.0,0.33833024]
[1755966548324,2.30891383,114960.0,114950.0,0.30826]
[1755966548523,2.30891383,114960.0,114950.0,0.32212]
[1755966548925,2.30891383,114960.0,114950.0,0.34603]
[1755966549424,2.30891383,114960.0,114950.0,0.40860024]
[1755966552829,2.30891383,114960.0,114950.0,0.34603]
[1755966555633,3.96347383,114960.0,114950.0,0.34603]
[1755966557632,3.96347383,114960.0,114950.0,0.26072]
[1755966558136,4.32427383,114960.0,114950.0,0.29322]
[1755966559235,4.32427383,114960.0,114950.0,0.26072]
[1755966561532,4.32427383,114960.0,114950.0,0.29322]
[1755966562634,4.32427383,114960.0,114950.0,0.26072]
[1755966563236,4.32427383,114960.0,114950.0,0.29322]
[1755966564041,4.32427383,114960.0,114950.0,0.30708]
[1755966566842,4.32427383,114960.0,114950.0,0.29322]
[1755966568343,4.32427383,114960.0,114950.0,0.26072]
[1755966570644,4.32427383,114960.0,114950.0,0.29264]
[1755966576949,4.32427383,114960.0,114950.0,0.26072]
[1755966581761,3.83366738,114960.0,114950.0,0.26072]
[1755966582569,4.32427383,114960.0,114950.0,0.26072]
[1755966583066,4.34505057,114960.0,114950.0,0.26072]
[1755966583869,3.85444412,114960.0,114950.0,0.26072]
[1755966584270,3.85444587,114960.0,114950.0,0.26072]
[1755966586973,3.85444587,114960.0,114950.0,0.29264]
[1755966594078,2.19988587,114960.0,114950.0,0.29264]
[1755966595484,1.70927942,114960.0,114950.0,0.29264]
[1755966595785,2.19988587,114960.0,114950.0,0.29264]
[1755966598384,2.19988587,114960.0,114950.0,0.35521024]
[1755966600484,2.69049232,114960.0,114950.0,0.32329024]
[1755966601989,2.69049232,114960.0,114950.0,0.26072]
[1755966602180,1.70927942,114960.0,114950.0,0.2937]
[1755966602588,2.69049232,114960.0,114950.0,0.2937]
[1755966604896,2.69049232,114960.0,114950.0,0.26072]
[1755966608399,2.69049232,114960.0,114950.0,0.23]
[1755966608592,2.94200678,114960.0,114950.0,0.16449403]
[1755966608793,0.0909729,114950.0,114940.0,0.08593024]
[1755966609097,0.96325606,114950.0,114940.0,0.31336]
[1755966610302,1.10775606,114950.0,114940.0,0.31336]
[1755966610502,0.94237935,114950.0,114940.0,0.31336]
[1755966611899,0.96625409,114950.0,114940.0,0.32325]
[1755966612400,0.96525409,114950.0,114940.0,0.31336]
[1755966612703,0.96925409,114950.0,114940.0,0.31336]
[1755966613205,0.96925409,114950.0,114940.0,0.32325]
[1755966614393,0.96925409,114950.0,114940.0,0.34599]
[1755966614597,0.96925409,114950.0,114940.0,0.31336]
[1755966615708,0.47864764,114950.0,114940.0,0.36908]
[1755966615912,0.96925409,114950.0,114940.0,0.34599]
[1755966617307,0.96925409,114950.0,114940.0,0.37897]
[1755966617607,0.96925409,114950.0,114940.0,0.34599]
[1755966618709,0.96925409,114950.0,114940.0,0.37897]
[1755966619401,0.47864764,114950.0,114940.0,0.37897]
[1755966619600,0.96925409,114950.0,114940.0,0.37897]
[1755966619800,0.47864764,114950.0,114940.0,0.37897]
[1755966620006,0.96925409,114950.0,114940.0,0.39359]
[1755966620711,0.96925409,114950.0,114940.0,0.36061]
[1755966620910,0.96925409,114950.0,114940.0,0.34599]
[1755966622007,0.94837935,114950.0,114940.0,0.34599]
[1755966623304,0.4577729,114950.0,114940.0,0.37897]
[1755966623510,0.94837935,114950.0,114940.0,0.37897]
[1755966623810,0.94837935,114950.0,114940.0,0.34599]
[1755966625112,0.9693631,114950.0,114940.0,0.34599]
[1755966629616,1.3301631,114950.0,114940.0,0.34599]
[1755966631125,1.3301631,114950.0,114940.0,0.32325]
[1755966631420,0.83955665,114950.0,114940.0,0.34629]
[1755966631720,1.3301631,114950.0,114940.0,0.37906]
[1755966631915,0.1036205,114940.0,114930.0,0.04707]
[1755966632218,1.84012696,114940.0,114930.0,0.31675822]
[1755966632521,3.51603225,114940.0,114930.0,0.31675822]
[1755966633112,3.51703225,114940.0,114930.0,0.31675822]
[1755966633716,3.51903225,114940.0,114930.0,0.31675822]
[1755966633916,3.51903225,114940.0,114930.0,0.33938822]
[1755966634123,3.51803225,114940.0,114930.0,0.33938822]
[1755966634322,3.52003225,114940.0,114930.0,0.33938822]
[1755966635322,3.52003225,114940.0,114930.0,0.31634822]
[1755966635920,3.52203225,114940.0,114930.0,0.31634822]
[1755966636422,3.52203225,114940.0,114930.0,0.33938822]
[1755966637520,3.52203225,114940.0,114930.0,0.31634822]
[1755966638223,3.52203225,114940.0,114930.0,0.37215822]
[1755966638423,3.52203225,114940.0,114930.0,0.35575822]
[1755966638610,3.52203225,114940.0,114930.0,0.40303822]
[1755966640423,2.69832696,114940.0,114930.0,0.37026822]
[1755966640611,3.50092696,114940.0,114930.0,0.40303822]
[1755966641719,2.69832696,114940.0,114930.0,0.40303822]
[1755966641919,3.50092696,114940.0,114930.0,0.40303822]
[1755966643031,2.69832696,114940.0,114930.0,0.40303822]
[1755966643328,3.45312696,114940.0,114930.0,0.65303822]
[1755966643526,3.47616696,114940.0,114930.0,0.65303822]
[1755966643927,3.49713286,114940.0,114930.0,0.65303822]
[1755966646425,3.52189286,114940.0,114930.0,0.65303822]
[1755966648239,3.50092696,114940.0,114930.0,0.65303822]
[1755966651936,3.5218261,114940.0,114930.0,0.65303822]
[1755966658943,3.5218261,114940.0,114930.0,0.40303822]
[1755966659243,3.5218261,114940.0,114930.0,0.29]
[1755966659645,3.5218261,114940.0,114930.0,0.3133]
[1755966659847,3.5218261,114940.0,114930.0,0.32268]
[1755966660141,3.5218261,114940.0,114930.0,0.34577]
[1755966660442,3.5218261,114940.0,114930.0,0.39514]
[1755966660643,3.5218261,114940.0,114930.0,0.40964]
[1755966661340,3.5218261,114940.0,114930.0,0.36167]
[1755966661941,3.5218261,114940.0,114930.0,0.39514]
[1755966664644,3.8826261,114940.0,114930.0,0.36167]
[1755966664845,3.8826261,114940.0,114930.0,0.39514]
[1755966666350,3.8826261,114940.0,114930.0,0.36167]
[1755966667449,3.39201965,114940.0,114930.0,0.39514]
[1755966667651,3.8826261,114940.0,114930.0,0.39514]
[1755966669442,3.8826261,114940.0,114930.0,0.34577]
[1755966672147,3.8826261,114940.0,114930.0,0.37924]
[1755966673353,3.8826261,114940.0,114930.0,0.40964]
[1755966674757,3.8826261,114940.0,114930.0,0.34577]
[1755966675753,3.8826261,114940.0,114930.0,0.32268]
[1755966678360,3.8826261,114940.0,114930.0,0.29]
[1755966680567,4.1326261,114940.0,114930.0,0.29]
[1755966686568,3.8826261,114940.0,114930.0,0.29]
[1755966689571,3.8826261,114940.0,114930.0,0.26696]
[1755966693065,4.0272261,114940.0,114930.0,0.26696]
[1755966693265,3.8826261,114940.0,114930.0,0.26696]
[1755966703882,3.88259645,114940.0,114930.0,0.26696]